fUSD/lending_fUSD_20250506
["ID","MTS","AMOUNT","RATE_DAILY","PERIOD"]
[360031399,1746495045726,-201.51478007,0.00019984,2]
[360031400,1746495045735,-450.0,0.00019984,2]
[360031401,1746495045745,-180.656111,0.00019984,2]
[360031402,1746495045757,-487.78352824,0.00019984,2]
[360031403,1746495045769,-500.0,0.00019985,2]
[360031404,1746495045779,-450.0,0.00019985,2]
[360031405,1746495045788,-470.0,0.00019985,2]
[360031406,1746495045798,-450.0,0.00019985,2]
[360031407,1746495045807,-450.0,0.00019985,2]
[360031408,1746495045819,-450.0,0.00019985,2]
[360031409,1746495045830,-450.0,0.00019985,2]
[360031410,1746495045841,-450.0,0.00019985,2]
[360031411,1746495046040,-452.98227642,0.00019985,2]
[360031412,1746495046051,-450.0,0.00019985,2]
[360031413,1746495046060,-450.0,0.00019985,2]
[360031414,1746495046070,-450.0,0.00019985,2]
[360031415,1746495046080,-157.92333282,0.00019985,2]
[360031416,1746495046089,-450.0,0.00019985,2]
[360031417,1746495046098,-450.0,0.00019985,2]
[360031418,1746495046107,-450.0,0.00019985,2]
[360031419,1746495046116,-450.0,0.00019985,2]
[360031420,1746495046126,-450.0,0.00019985,2]
[360031421,1746495046135,-450.0,0.00019985,2]
[360031422,1746495046144,-450.0,0.00019985,2]
[360031423,1746495046154,-530.0,0.00019985,2]
[360031424,1746495046163,-450.0,0.00019985,2]
[360031426,1746495046173,-450.0,0.00019985,2]
[360031427,1746495046183,-450.0,0.00019985,2]
[360031428,1746495046192,-450.0,0.00019985,2]
[360031429,1746495046201,-490.70485438,0.00019985,2]
[360031430,1746495046211,-450.0,0.00019985,2]
[360031431,1746495046221,-450.0,0.00019985,2]
[360031432,1746495046231,-450.0,0.00019985,2]
[360031433,1746495046241,-450.0,0.00019985,2]
[360031434,1746495046250,-293.48391549,0.00019985,2]
[360031435,1746495046260,-450.0,0.00019985,2]
[360031436,1746495046270,-331.31513355,0.00019985,2]
[360031437,1746495046279,-450.0,0.00019985,2]
[360031438,1746495046289,-450.0,0.00019985,2]
[360031439,1746495046299,-450.0,0.00019985,2]
[360031440,1746495046309,-169.5746165,0.00019985,2]
[360031441,1746495046319,-484.56027258,0.00019985,2]
[360031442,1746495046331,-623.1451033,0.00019985,2]
[360031443,1746495046340,-450.0,0.00019985,2]
[360031444,1746495046350,-470.0,0.00019985,2]
[360031445,1746495046360,-450.0,0.00019985,2]
[360031446,1746495046370,-450.0,0.00019985,2]
[360031447,1746495046380,-450.0,0.00019985,2]
[360031448,1746495046390,-450.0,0.00019985,2]
[360031449,1746495046400,-406.66763001,0.00019985,2]
[360031450,1746495046409,-450.0,0.00019985,2]
[360031451,1746495046419,-450.0,0.00019985,2]
[360031452,1746495046429,-450.0,0.00019985,2]
[360031453,1746495046439,-450.0,0.00019985,2]
[360031454,1746495046448,-450.0,0.00019985,2]
[360031455,1746495046458,-450.0,0.00019985,2]
[360031456,1746495046467,-468.86,0.00019985,2]
[360031457,1746495046477,-450.0,0.00019985,2]
[360031458,1746495046487,-450.0,0.00019985,2]
[360031459,1746495046496,-450.0,0.00019985,2]
[360031460,1746495046506,-499.86,0.00019985,2]
[360031461,1746495046516,-586.15,0.00019985,2]
[360031462,1746495046525,-450.0,0.00019985,2]
[360031463,1746495046535,-450.0,0.00019985,2]
[360031464,1746495046544,-450.0,0.00019985,2]
[360031465,1746495046554,-559.60561556,0.00019985,2]
[360031466,1746495046564,-500.0,0.00019985,2]
[360031467,1746495046574,-179.66070082,0.00019985,2]
[360031468,1746495046584,-173.93417252,0.00019985,2]
[360031469,1746495046593,-500.0,0.00019985,2]
[360031470,1746495046602,-500.0,0.00019985,2]
[360031471,1746495046612,-470.28163203,0.00019985,2]
[360031472,1746495046621,-500.0,0.00019985,2]
[360031473,1746495046630,-500.0,0.00019985,2]
[360031474,1746495046639,-500.0,0.00019985,2]
[360031475,1746495046648,-276.66426999,0.00019985,2]
[360031476,1746495046657,-450.0,0.00019985,2]
[360031477,1746495046667,-450.0,0.00019985,2]
[360031478,1746495046675,-1110.031,0.00019986,2]
[360031479,1746495046686,-3387.3065357,0.00019986,2]
[360031480,1746495046696,-7649.9155914,0.00019986,2]
[360031481,1746495046708,-33926.14198999,0.00019986,2]
[360031482,1746495046726,-649.32987711,0.00019986,2]
[360031483,1746495046738,-435.41235761,0.00019986,2]
[360031484,1746495046859,-431.22961645,0.00019986,2]
[360031485,1746495046879,-6524.72387556,0.00019986,2]
[360031486,1746495046890,-28236.95629324,0.00019986,2]
[360031487,1746495046901,-1927.43311144,0.00019986,2]
[360031488,1746495120371,434.0,0.0003013,120]
[360031489,1746495152717,500.0,0.00027945,30]
[360031490,1746495152958,535.87757428,0.00029315,35]
[360031491,1746495181969,250.0,0.00017,2]
[360031492,1746495183040,197.41522304,0.00019,2]
[360031493,1746495183061,102.58477696,0.00019,2]
[360031494,1746495191074,901.71553865,0.0002955,30]
[360031495,1746495242488,339.21,0.00019071,2]
[360031496,1746495308169,1084.38,0.00019167,2]
[360031497,1746495330861,244.102175,0.0003,30]
[360031498,1746495391759,1405.06,0.00018962,2]
[360031499,1746495444255,1068.76522304,0.00018962,2]
[360031500,1746495444277,1000.0,0.00018962,2]
[360031501,1746495444298,650.20477696,0.00018962,2]
[360031502,1746495500756,267.40715686,0.000301,120]
[360031505,1746495619239,1568.57808888,0.0003,30]
[360031506,1746495639996,197.15,0.00018912,2]
[360031507,1746495669929,460.87,0.00017003,2]
[360031508,1746495670172,460.87,0.00019267,2]
[360031509,1746495700519,3058.7768288,0.0003,30]
[360031510,1746495745059,1053.8648928,0.0003,30]
[360031511,1746495752620,49999.999998,0.0003,30]
[360031512,1746495767743,333.2,0.0003,30]
[360031513,1746495910364,1500.0,0.00019178,2]
[360031514,1746495914845,500.0,0.00030137,120]
[360031515,1746495922175,500.0,0.00030137,120]
[360031516,1746495925984,730.90522304,0.00018906,2]
[360031517,1746495926006,664.36477696,0.00018906,2]
[360031518,1746495937188,350.71,0.00018906,2]
[360031519,1746495942899,267.64189789,0.00030137,120]
[360031520,1746495949808,500.0,0.00030137,120]
[360031521,1746495958002,500.0,0.00030137,120]
[360031522,1746495965698,500.0,0.00030137,120]
[360031523,1746495972676,500.0,0.00030137,120]
[360031524,1746495978320,500.0,0.00030137,120]
[360031525,1746495984160,500.0,0.00030137,120]
[360031526,1746495989273,500.0,0.00030137,120]
[360031527,1746495998565,500.0,0.00030137,120]
[360031528,1746496004593,500.0,0.00030137,120]
[360031529,1746496011208,500.0,0.00030137,120]
[360031530,1746496016291,500.0,0.00030137,120]
[360031531,1746496058844,3300.96893593,0.000301,120]
[360031532,1746496140479,458.0,0.0003,30]
[360031533,1746496216168,1647.83,0.0001895,2]
[360031540,1746496232348,-339.38436072,0.000197,2]
[360031541,1746496232357,-45.78804932,0.000197,2]
[360031542,1746496232402,-154.21195068,0.000197,2]
[360031543,1746496232413,-250.0,0.00019725,2]
[360031544,1746496232423,-230.7889,0.000198,2]
[360031545,1746496232432,-200.0,0.00019814,2]
[360031546,1746496232441,-207.4,0.00019843,2]
[360031547,1746496232451,-1200.0,0.00019854,2]
[360031548,1746496232460,-300.0,0.00019854,2]
[360031549,1746496232469,-488.27000346,0.00019855,2]
[360031550,1746496232479,-450.0,0.00019855,2]
[360031551,1746496232488,-501.10608149,0.00019855,2]
[360031552,1746496232498,-493.06935434,0.00019855,2]
[360031553,1746496232508,-488.25407622,0.00019855,2]
[360031554,1746496232517,-483.34560712,0.00019855,2]
[360031555,1746496232527,-450.0,0.00019855,2]
[360031556,1746496232536,-526.54712003,0.00019855,2]
[360031557,1746496232545,-450.0,0.00019855,2]
[360031558,1746496232554,-167.93026939,0.00019855,2]
[360031559,1746496232563,-484.02870547,0.00019855,2]
[360031560,1746496232573,-450.0,0.00019855,2]
[360031561,1746496232582,-526.89271387,0.00019855,2]
[360031562,1746496232591,-527.69451681,0.00019855,2]
[360031563,1746496232600,-519.10935052,0.00019855,2]
[360031564,1746496232609,-514.99395421,0.00019855,2]
[360031565,1746496232620,-469.94072565,0.00019855,2]
[360031566,1746496232630,-483.21661627,0.00019855,2]
[360031567,1746496232640,-485.79561487,0.00019855,2]
[360031568,1746496232649,-450.0,0.00019855,2]
[360031569,1746496232659,-450.0,0.00019855,2]
[360031570,1746496232668,-587.85672839,0.00019855,2]
[360031571,1746496232678,-510.20465171,0.00019855,2]
[360031572,1746496232687,-526.72390651,0.00019855,2]
[360031573,1746496232697,-527.06300281,0.00019855,2]
[360031574,1746496232706,-575.4858201,0.00019855,2]
[360031575,1746496232716,-450.0,0.00019855,2]
[360031577,1746496232725,-200.0,0.00019871,2]
[360031579,1746496232735,-741.9045,0.00019886,2]
[360031581,1746496232745,-547.8562,0.00019886,2]
[360031583,1746496232755,-311.6401,0.00019886,2]
[360031585,1746496232764,-322.3556,0.00019886,2]
[360031587,1746496232773,-14184.92493336,0.00019888,2]
[360031589,1746496232782,-261.0473,0.0001989,2]
[360031590,1746496232792,-769.0165,0.0001989,2]
[360031592,1746496232801,-3524.81594512,0.00019897,2]
[360031594,1746496232810,-3524.81594512,0.00019898,2]
[360031597,1746496232820,-172.59267387,0.00019899,2]
[360031599,1746496232829,-1523.68328965,0.00019899,2]
[360031601,1746496232838,-172.59267385,0.000199,2]
[360031603,1746496232848,-302.3021029,0.000199,2]
[360031605,1746496232858,-285.16577956,0.000199,2]
[360031607,1746496232868,-3524.81594512,0.000199,2]
[360031609,1746496232879,-152.53944812,0.000199,2]
[360031611,1746496232889,-172.59267385,0.000199,2]
[360031613,1746496232898,-165.0,0.00019973,2]
[360031615,1746496232907,-169.50447998,0.00019973,2]
[360031617,1746496232916,-500.0,0.00019973,2]
[360031619,1746496232925,-500.75992441,0.00019973,2]
[360031621,1746496232934,-501.6746957,0.00019973,2]
[360031623,1746496232943,-505.14108557,0.00019973,2]
[360031625,1746496232953,-480.95610256,0.00019973,2]
[360031627,1746496232962,-172.47495479,0.00019973,2]
[360031629,1746496232971,-502.23181819,0.00019973,2]
[360031631,1746496232980,-504.96643662,0.00019973,2]
[360031633,1746496232989,-502.30529132,0.00019973,2]
[360031635,1746496232999,-500.93142294,0.00019973,2]
[360031636,1746496233008,-151.0,0.00019974,2]
[360031637,1746496233017,-151.0,0.00019974,2]
[360031638,1746496233027,-749.8503693,0.00019985,2]
[360031639,1746496233036,-3437.79272065,0.00019985,2]
[360031640,1746496233045,-901.038,0.00019986,2]
[360031641,1746496233054,-4463.6739448,0.00019986,2]
[360031642,1746496233063,-3221.28993358,0.00019986,2]
[360031643,1746496233102,-500.0,0.00019985,2]
[360031644,1746496233112,-500.0,0.00019985,2]
[360031645,1746496233122,-8352.00000001,0.00019986,2]
[360031646,1746496238372,-1523.68328959,0.00019899,2]
[360031647,1746496238382,-37476.45671041,0.00019986,2]
[360031651,1746496240458,-185.81760942,0.00019899,2]
[360031652,1746496240467,-1523.68328959,0.00019899,2]
[360031653,1746496240476,-53833.57346687,0.00019986,2]
[360031654,1746496240514,-3095.90955508,0.00019986,2]
[360031655,1746496240526,-18875.81804015,0.00019986,2]
[360031656,1746496240535,-10076.9437025,0.00019986,2]
[360031657,1746496240545,-159.85371253,0.00019988,2]
[360031658,1746496240554,-457.82952224,0.00019988,2]
[360031659,1746496240564,-463.16366444,0.00019988,2]
[360031660,1746496240573,-198.13530487,0.00019988,2]
[360031661,1746496240582,-563.83685557,0.00019988,2]
[360031662,1746496240591,-207.67752259,0.00019988,2]
[360031663,1746496240601,-450.0,0.00019988,2]
[360031664,1746496240610,-270.37228676,0.00019988,2]
[360031665,1746496240619,-324.19412708,0.00019988,2]
[360031666,1746496240628,-450.0,0.00019988,2]
[360031667,1746496240637,-246.96321116,0.00019988,2]
[360031668,1746496240647,-467.3072821,0.00019988,2]
[360031669,1746496240656,-152.9375377,0.00019988,2]
[360031670,1746496240666,-198.94826499,0.00019988,2]
[360031671,1746496240676,-450.0,0.00019988,2]
[360031672,1746496240685,-181.53754976,0.00019988,2]
[360031673,1746496240695,-450.0,0.00019988,2]
[360031674,1746496240703,-450.0,0.00019988,2]
[360031675,1746496240713,-161.31823712,0.00019988,2]
[360031676,1746496240723,-194.93993763,0.00019988,2]
[360031677,1746496240732,-476.85253887,0.00019988,2]
[360031678,1746496240741,-490.28766509,0.00019988,2]
[360031679,1746496240751,-450.0,0.00019988,2]
[360031680,1746496240759,-450.0,0.00019988,2]
[360031681,1746496240769,-450.0,0.00019988,2]
[360031682,1746496240778,-450.0,0.00019988,2]
[360031683,1746496240787,-183.26485706,0.00019988,2]
[360031684,1746496240797,-450.0,0.00019988,2]
[360031685,1746496240806,-574.06924665,0.00019988,2]
[360031686,1746496240816,-500.0,0.00019988,2]
[360031687,1746496240826,-463.59937314,0.00019988,2]
[360031688,1746496240835,-450.0,0.00019988,2]
[360031689,1746496240845,-450.0,0.00019988,2]
[360031690,1746496240854,-450.0,0.00019988,2]
[360031691,1746496240864,-450.0,0.00019988,2]
[360031692,1746496240877,-377.08189952,0.00019988,2]
[360031693,1746496240887,-557.76126635,0.00019988,2]
[360031694,1746496240896,-163.5653244,0.00019988,2]
[360031695,1746496240906,-554.64211063,0.00019988,2]
[360031696,1746496240915,-151.56077242,0.00019988,2]
[360031697,1746496240925,-546.93845534,0.00019988,2]
[360031698,1746496240934,-450.0,0.00019988,2]
[360031699,1746496240943,-450.0,0.00019988,2]
[360031700,1746496240952,-450.0,0.00019988,2]
[360031701,1746496240961,-466.95553793,0.00019988,2]
[360031702,1746496240971,-487.04203067,0.00019988,2]
[360031703,1746496240979,-498.3542331,0.00019988,2]
[360031704,1746496240988,-248.48682418,0.00019988,2]
[360031705,1746496240998,-159.8172007,0.00019988,2]
[360031706,1746496241007,-289.9018372,0.00019988,2]
[360031707,1746496241016,-450.0,0.00019988,2]
[360031708,1746496241025,-450.0,0.00019988,2]
[360031709,1746496241034,-450.0,0.00019989,2]
[360031710,1746496241043,-344.19591582,0.00019989,2]
[360031711,1746496241052,-450.0,0.00019989,2]
[360031712,1746496241061,-175.6442106,0.00019989,2]
[360031713,1746496241071,-216.03491599,0.00019989,2]
[360031714,1746496241080,-242.07525016,0.00019989,2]
[360031715,1746496241089,-501.16145534,0.00019989,2]
[360031716,1746496241098,-380.41003724,0.00019989,2]
[360031717,1746496241108,-450.24309134,0.00019989,2]
[360031718,1746496241117,-557.64366022,0.00019989,2]
[360031719,1746496241129,-502.28204968,0.00019989,2]
[360031720,1746496241138,-219.90919077,0.00019989,2]
[360031721,1746496241147,-507.30604503,0.00019989,2]
[360031722,1746496241156,-1242.3,0.00019989,2]
[360031723,1746496241165,-450.0,0.00019989,2]
[360031724,1746496241175,-194.90395162,0.00019989,2]
[360031725,1746496241184,-489.96195882,0.00019989,2]
[360031726,1746496241193,-283.17312793,0.00019989,2]
[360031727,1746496241202,-198.03829565,0.00019989,2]
[360031728,1746496241211,-168.95139506,0.00019989,2]
[360031729,1746496241221,-451.81090501,0.00019989,2]
[360031730,1746496241230,-506.73225743,0.00019989,2]
[360031731,1746496241239,-450.0,0.00019989,2]
[360031732,1746496241248,-510.39991442,0.00019989,2]
[360031734,1746496241257,-253.21977317,0.00019989,2]
[360031736,1746496241267,-522.72477206,0.00019989,2]
[360031737,1746496241276,-242.81662437,0.00019989,2]
[360031738,1746496241285,-515.24663202,0.00019989,2]
[360031739,1746496241293,-500.77173779,0.00019989,2]
[360031740,1746496241303,-162.52189223,0.00019989,2]
[360031741,1746496241312,-450.0,0.00019989,2]
[360031742,1746496241321,-450.0,0.00019989,2]
[360031743,1746496241331,-450.0,0.00019989,2]
[360031744,1746496241344,-481.7447211,0.00019989,2]
[360031745,1746496241353,-450.0,0.00019989,2]
[360031746,1746496241362,-456.31,0.00019989,2]
[360031747,1746496241373,-6506.44,0.00019989,2]
[360031748,1746496241383,-450.0,0.00019989,2]
[360031749,1746496241391,-450.0,0.00019989,2]
[360031750,1746496241401,-450.0,0.00019989,2]
[360031751,1746496241411,-688.03,0.00019989,2]
[360031752,1746496241421,-450.0,0.00019989,2]
[360031753,1746496241430,-450.0,0.00019989,2]
[360031754,1746496241439,-549.37,0.00019989,2]
[360031755,1746496241448,-504.79604291,0.00019989,2]
[360031756,1746496241457,-26603.66270199,0.0001999,2]
[360031757,1746496241467,-1494.73771319,0.0001999,2]
[360031758,1746496241476,-197.192869,0.00019998,2]
[360031759,1746496241485,-1085.41108773,0.00019998,2]
[360031760,1746496241494,-500.0,0.00019998,2]
[360031761,1746496241503,-500.0,0.00019998,2]
[360031762,1746496241512,-529.41467504,0.00019998,2]
[360031763,1746496241521,-500.0,0.00019998,2]
[360031764,1746496241530,-630.06388697,0.00019998,2]
[360031765,1746496241540,-450.0,0.00019998,2]
[360031766,1746496241549,-940.846,0.00019999,2]
[360031767,1746496241558,-5933.0,0.00019999,2]
[360031768,1746496241567,-646488.66579807,0.00019999,2]
[360031769,1746496241576,-151.0,0.00019999,2]
[360031770,1746496241585,-151.598433,0.00019999,2]
[360031771,1746496241594,-205.238441,0.00019999,2]
[360031772,1746496241603,-151.0,0.00019999,2]
[360031773,1746496241612,-151.0,0.00019999,2]
[360031774,1746496241621,-200.0,0.00019999,2]
[360031775,1746496241631,-450.0,0.00019999,2]
[360031776,1746496241641,-450.0,0.00019999,2]
[360031777,1746496241650,-387.20863782,0.00019999,2]
[360031778,1746496241660,-150.22,0.00019999,2]
[360031779,1746496241672,-450.0,0.00019999,2]
[360031780,1746496241685,-450.0,0.00019999,2]
[360031781,1746496241698,-211.4667648,0.00019999,2]
[360031782,1746496241710,-150.0,0.00019999,2]
[360031783,1746496241722,-500.0,0.00019999,2]
[360031784,1746496241732,-213.33426488,0.00019999,2]
[360031785,1746496241743,-500.0,0.00019999,2]
[360031786,1746496241754,-150.0,0.00019999,2]
[360031787,1746496241766,-500.0,0.00019999,2]
[360031788,1746496241778,-1242.3,0.00019999,2]
[360031789,1746496241789,-1242.3,0.00019999,2]
[360031790,1746496241801,-1242.3,0.00019999,2]
[360031791,1746496241812,-1242.3,0.00019999,2]
[360031792,1746496241824,-1242.3,0.00019999,2]
[360031793,1746496241836,-1242.3,0.00019999,2]
[360031794,1746496241847,-1242.3,0.00019999,2]
[360031795,1746496241858,-1242.3,0.00019999,2]
[360031796,1746496241870,-1242.3,0.00019999,2]
[360031797,1746496241880,-1242.3,0.00019999,2]
[360031798,1746496241891,-1242.3,0.00019999,2]
[360031799,1746496241903,-1242.3,0.00019999,2]
[360031800,1746496241914,-1242.3,0.00019999,2]
[360031801,1746496241926,-1242.3,0.00019999,2]
[360031802,1746496241938,-1242.3,0.00019999,2]
[360031803,1746496241950,-1242.3,0.00019999,2]
[360031804,1746496241961,-1242.3,0.00019999,2]
[360031805,1746496241973,-1242.3,0.00019999,2]
[360031806,1746496241985,-1242.3,0.00019999,2]
[360031807,1746496241997,-1242.3,0.00019999,2]
[360031808,1746496242009,-1242.3,0.00019999,2]
[360031809,1746496242021,-1242.3,0.00019999,2]
[360031810,1746496242033,-1242.4105,0.00019999,2]
[360031811,1746496242044,-150.0,0.00019999,2]
[360031812,1746496242057,-450.0,0.00019999,2]
[360031813,1746496242068,-450.0,0.00019999,2]
[360031814,1746496242079,-450.0,0.00019999,2]
[360031815,1746496242091,-450.0,0.00019999,2]
[360031816,1746496242102,-450.0,0.00019999,2]
[360031817,1746496242114,-401.94375254,0.00019999,2]
[360031818,1746496242126,-259.84295997,0.00019999,2]
[360031819,1746496242138,-450.0,0.00019999,2]
[360031820,1746496242149,-450.0,0.00019999,2]
[360031821,1746496242160,-496.27742573,0.00019999,2]
[360031822,1746496242173,-450.0,0.00019999,2]
[360031823,1746496242184,-245.90788639,0.00019999,2]
[360031824,1746496242195,-450.0,0.00019999,2]
[360031825,1746496242206,-197.54559638,0.00019999,2]
[360031826,1746496242217,-450.0,0.00019999,2]
[360031827,1746496242227,-450.0,0.00019999,2]
[360031828,1746496242237,-242.60829418,0.00019999,2]
[360031829,1746496242247,-450.0,0.00019999,2]
[360031830,1746496242258,-561.07405081,0.00019999,2]
[360031831,1746496242269,-193.93836357,0.00019999,2]
[360031832,1746496242280,-450.0,0.00019999,2]
[360031833,1746496242293,-450.0,0.00019999,2]
[360031834,1746496242304,-450.0,0.00019999,2]
[360031835,1746496242314,-450.0,0.00019999,2]
[360031836,1746496242324,-450.0,0.00019999,2]
[360031837,1746496242335,-450.0,0.00019999,2]
[360031838,1746496242350,-332.80918247,0.00019999,2]
[360031839,1746496242360,-242.8114228,0.00019999,2]
[360031840,1746496242373,-450.0,0.00019999,2]
[360031841,1746496242385,-450.0,0.00019999,2]
[360031842,1746496242396,-450.0,0.00019999,2]
[360031843,1746496242407,-165.71762369,0.00019999,2]
[360031844,1746496242417,-489.8775683,0.00019999,2]
[360031845,1746496242427,-450.0,0.00019999,2]
[360031846,1746496242438,-509.53661196,0.00019999,2]
[360031847,1746496242449,-450.0,0.00019999,2]
[360031848,1746496242459,-545.97548474,0.00019999,2]
[360031849,1746496242470,-450.0,0.00019999,2]
[360031850,1746496242480,-450.0,0.00019999,2]
[360031851,1746496242490,-450.0,0.00019999,2]
[360031852,1746496242500,-421.35913517,0.00019999,2]
[360031853,1746496242511,-450.0,0.00019999,2]
[360031854,1746496242521,-450.0,0.00019999,2]
[360031855,1746496242532,-450.0,0.00019999,2]
[360031856,1746496242542,-450.0,0.00019999,2]
[360031857,1746496242552,-450.0,0.00019999,2]
[360031858,1746496242564,-450.0,0.00019999,2]
[360031859,1746496242574,-500.0,0.00019999,2]
[360031860,1746496242585,-450.0,0.00019999,2]
[360031861,1746496242595,-500.0,0.00019999,2]
[360031862,1746496242606,-450.0,0.00019999,2]
[360031863,1746496242616,-500.0,0.00019999,2]
[360031864,1746496242628,-450.0,0.00019999,2]
[360031865,1746496242638,-450.0,0.00019999,2]
[360031866,1746496242649,-450.0,0.00019999,2]
[360031867,1746496242660,-500.0,0.00019999,2]
[360031868,1746496242671,-415.61932527,0.00019999,2]
[360031869,1746496242681,-500.0,0.00019999,2]
[360031870,1746496242692,-500.0,0.00019999,2]
[360031871,1746496242703,-330.88767049,0.00019999,2]
[360031872,1746496242714,-500.0,0.00019999,2]
[360031873,1746496242724,-503.64430949,0.00019999,2]
[360031874,1746496242735,-6506.44,0.00019999,2]
[360031875,1746496242745,-572.18845893,0.00019999,2]
[360031876,1746496242755,-6506.44,0.00019999,2]
[360031877,1746496242766,-6506.44,0.00019999,2]
[360031878,1746496242777,-6506.44,0.00019999,2]
[360031879,1746496242788,-6506.44,0.00019999,2]
[360031880,1746496242798,-6506.44,0.00019999,2]
[360031881,1746496242809,-6506.44,0.00019999,2]
[360031882,1746496242820,-6506.44,0.00019999,2]
[360031883,1746496242830,-6506.44,0.00019999,2]
[360031884,1746496242841,-6506.44,0.00019999,2]
[360031885,1746496242851,-6506.44,0.00019999,2]
[360031886,1746496242861,-6506.44,0.00019999,2]
[360031887,1746496242872,-6506.44,0.00019999,2]
[360031888,1746496242882,-6506.44,0.00019999,2]
[360031889,1746496242893,-6506.44,0.00019999,2]
[360031890,1746496242904,-6506.44,0.00019999,2]
[360031891,1746496242915,-6506.44,0.00019999,2]
[360031892,1746496242926,-6506.44,0.00019999,2]
[360031893,1746496242936,-6506.44,0.00019999,2]
[360031894,1746496242946,-6506.44,0.00019999,2]
[360031895,1746496242957,-6506.44,0.00019999,2]
[360031897,1746496242967,-6506.44,0.00019999,2]
[360031899,1746496242979,-6506.60989224,0.00019999,2]
[360031900,1746496242989,-450.0,0.00019999,2]
[360031901,1746496242999,-450.0,0.00019999,2]
[360031902,1746496243010,-450.0,0.00019999,2]
[360031903,1746496243020,-450.0,0.00019999,2]
[360031904,1746496243031,-450.0,0.00019999,2]
[360031905,1746496243041,-450.0,0.00019999,2]
[360031906,1746496243052,-434.57839927,0.00019999,2]
[360031907,1746496243062,-450.0,0.00019999,2]
[360031908,1746496243073,-450.0,0.00019999,2]
[360031909,1746496243083,-450.0,0.00019999,2]
[360031910,1746496243094,-450.0,0.00019999,2]
[360031911,1746496243104,-488.87125153,0.00019999,2]
[360031912,1746496243114,-450.0,0.00019999,2]
[360031914,1746496243125,-450.0,0.00019999,2]
[360031916,1746496243136,-450.0,0.00019999,2]
[360031918,1746496243146,-450.0,0.00019999,2]
[360031920,1746496243157,-450.0,0.00019999,2]
[360031922,1746496243167,-450.0,0.00019999,2]
[360031924,1746496243177,-450.0,0.00019999,2]
[360031926,1746496243189,-505.96659849,0.00019999,2]
[360031928,1746496243200,-381.80816265,0.00019999,2]
[360031930,1746496243210,-450.0,0.00019999,2]
[360031932,1746496243221,-450.0,0.00019999,2]
[360031934,1746496243232,-450.0,0.00019999,2]
[360031935,1746496243243,-450.0,0.00019999,2]
[360031936,1746496243253,-450.0,0.00019999,2]
[360031937,1746496243264,-450.0,0.00019999,2]
[360031938,1746496243275,-425.84624383,0.00019999,2]
[360031939,1746496243285,-688.03,0.00019999,2]
[360031940,1746496243296,-688.03,0.00019999,2]
[360031941,1746496243306,-688.03,0.00019999,2]
[360031942,1746496243317,-688.03,0.00019999,2]
[360031943,1746496243328,-688.03,0.00019999,2]
[360031944,1746496243340,-688.03,0.00019999,2]
[360031945,1746496243350,-688.03,0.00019999,2]
[360031946,1746496243590,-688.03,0.00019999,2]
[360031947,1746496243605,-688.03,0.00019999,2]
[360031948,1746496243615,-688.03,0.00019999,2]
[360031949,1746496243627,-688.03,0.00019999,2]
[360031950,1746496243636,-688.03,0.00019999,2]
[360031951,1746496243647,-688.03,0.00019999,2]
[360031952,1746496243657,-688.03,0.00019999,2]
[360031953,1746496243666,-688.03,0.00019999,2]
[360031954,1746496243675,-688.03,0.00019999,2]
[360031955,1746496243684,-688.03,0.00019999,2]